fUSD/lending_fUSD_20240412
["ID","MTS","AMOUNT","RATE_DAILY","PERIOD"]
[322281860,1712932261699,-1230.89,0.00047123,31]
[322281861,1712932261710,-485.80652499,0.00047123,31]
[322281862,1712932261719,-500.0,0.00047123,31]
[322281863,1712932261729,-500.0,0.00047123,31]
[322281864,1712932261740,-2213.61,0.00047123,31]
[322281865,1712932261750,-259.6,0.00047123,31]
[322281866,1712932261759,-500.0,0.00047123,31]
[322281867,1712932261769,-500.0,0.00047123,31]
[322281868,1712932261779,-612.92,0.00047123,31]
[322281869,1712932261788,-754.08,0.00047123,31]
[322281870,1712932261798,-1797.61,0.00047123,31]
[322281871,1712932261807,-500.0,0.00047123,31]
[322281872,1712932261817,-1032.73,0.00047123,31]
[322281873,1712932261826,-500.0,0.00047123,31]
[322281874,1712932261982,-500.0,0.00047123,31]
[322281875,1712932261992,-500.0,0.00047123,31]
[322281876,1712932262002,-500.0,0.00047123,31]
[322281877,1712932262012,-1825.35,0.00047123,31]
[322281878,1712932262022,-500.0,0.00047123,31]
[322281879,1712932262032,-1023.55,0.00047123,31]
[322281880,1712932262041,-500.0,0.00047123,31]
[322281881,1712932262052,-387.21,0.00047123,31]
[322281882,1712932262062,-500.0,0.00047123,31]
[322281883,1712932262072,-1826.11,0.00047123,31]
[322281884,1712932262084,-1939.06,0.00047123,31]
[322281885,1712932262096,-537.77639328,0.00047123,31]
[322281886,1712932262106,-1072.93,0.00047123,31]
[322281887,1712932262119,-638.32,0.00047123,31]
[322281888,1712932262131,-500.0,0.00047123,31]
[322281889,1712932262141,-500.0,0.00047123,31]
[322281890,1712932262151,-604.62,0.00047123,31]
[322281891,1712932262161,-6523.12,0.00047123,31]
[322281892,1712932262170,-578.92,0.00047123,31]
[322281893,1712932262180,-1044.53,0.00047123,31]
[322281894,1712932262190,-500.0,0.00047123,31]
[322281895,1712932262199,-500.0,0.00047123,31]
[322281896,1712932262209,-871.26,0.00047123,31]
[322281897,1712932262219,-500.0,0.00047123,31]
[322281898,1712932262228,-500.0,0.00047123,31]
[322281899,1712932262237,-500.0,0.00047123,31]
[322281900,1712932262246,-500.0,0.00047123,31]
[322281901,1712932262256,-851.38,0.00047123,31]
[322281902,1712932262266,-500.0,0.00047123,31]
[322281903,1712932262277,-992.77,0.00047123,31]
[322281904,1712932262286,-767.12,0.00047123,31]
[322281905,1712932262296,-500.0,0.00047123,31]
[322281906,1712932262306,-500.0,0.00047123,31]
[322281907,1712932262316,-1944.43,0.00047123,31]
[322281908,1712932262325,-500.0,0.00047123,31]
[322281909,1712932262335,-808.31,0.00047123,31]
[322281910,1712932262346,-500.0,0.00047123,31]
[322281911,1712932262357,-500.0,0.00047123,31]
[322281912,1712932262369,-513.62,0.00047123,31]
[322281913,1712932262378,-500.0,0.00047123,31]
[322281914,1712932262389,-830.2,0.00047123,31]
[322281915,1712932262400,-500.0,0.00047123,31]
[322281916,1712932262409,-300.06603868,0.00047123,2]
[322281917,1712932262421,-500.0,0.00047123,31]
[322281918,1712932262431,-609.6,0.00047123,31]
[322281919,1712932262441,-500.0,0.00047123,31]
[322281920,1712932262451,-500.0,0.00047123,31]
[322281921,1712932262460,-500.0,0.00047123,31]
[322281922,1712932262471,-1025.86,0.00047123,31]
[322281923,1712932262480,-500.0,0.00047123,31]
[322281924,1712932262490,-500.0,0.00047123,31]
[322281925,1712932262502,-1870.81,0.00047123,31]
[322281926,1712932262511,-655.87,0.00047123,31]
[322281927,1712932262521,-887.38,0.00047123,31]
[322281928,1712932262531,-500.0,0.00047123,31]
[322281929,1712932262541,-4707.9,0.00047123,31]
[322281930,1712932262551,-688.0,0.00047123,31]
[322281931,1712932262561,-620.49,0.00047123,31]
[322281932,1712932262570,-500.0,0.00047123,31]
[322281933,1712932262579,-500.0,0.00047123,31]
[322281934,1712932262589,-500.0,0.00047137,30]
[322281935,1712932262598,-150.0,0.00047203,30]
[322281936,1712932262607,-153.06291746,0.00047203,34]
[322281937,1712932262617,-156.56,0.00047323,2]
[322281938,1712932262627,-203.53,0.00047331,2]
[322281939,1712932262637,-150.0,0.00047361,30]
[322281940,1712932262647,-620.0,0.00047368,30]
[322281941,1712932262656,-296.0,0.00047368,30]
[322281942,1712932262666,-426.0,0.00047368,30]
[322281943,1712932262675,-500.0,0.00047397,31]
[322281944,1712932262683,-500.0,0.00047397,31]
[322281945,1712932262693,-500.0,0.00047397,31]
[322281946,1712932262702,-500.0,0.00047397,31]
[322281947,1712932262711,-500.0,0.00047397,31]
[322281948,1712932262720,-500.0,0.00047397,31]
[322281949,1712932262730,-500.0,0.00047397,31]
[322281950,1712932262739,-500.0,0.00047397,31]
[322281951,1712932262749,-500.0,0.00047397,31]
[322281952,1712932262758,-500.0,0.00047397,31]
[322281953,1712932262767,-500.0,0.00047397,31]
[322281954,1712932262776,-500.0,0.00047397,31]
[322281955,1712932262786,-530.68,0.00047397,31]
[322281956,1712932262796,-690.46,0.00047397,2]
[322281957,1712932262805,-500.0,0.00047397,31]
[322281958,1712932262814,-586.07,0.00047397,31]
[322281959,1712932262824,-500.0,0.00047397,31]
[322281960,1712932262833,-548.32,0.00047397,31]
[322281961,1712932262842,-500.0,0.00047397,2]
[322281962,1712932262851,-500.0,0.00047397,31]
[322281963,1712932262860,-500.0,0.00047397,31]
[322281964,1712932262870,-1000.0,0.00047397,120]
[322281965,1712932262879,-500.0,0.00047397,31]
[322281966,1712932262888,-500.0,0.00047397,31]
[322281967,1712932262897,-500.0,0.00047397,31]
[322281968,1712932262907,-375.7442369,0.00047397,31]
[322281969,1712932262916,-500.0,0.00047397,31]
[322281970,1712932262925,-500.0,0.00047397,31]
[322281971,1712932262934,-500.0,0.00047397,31]
[322281972,1712932262943,-517.24,0.00047397,31]
[322281973,1712932262953,-500.0,0.00047397,31]
[322281974,1712932262962,-500.0,0.00047397,31]
[322281975,1712932262971,-152.14982995,0.00047397,31]
[322281976,1712932262980,-310.74704188,0.00047397,31]
[322281977,1712932262990,-500.0,0.00047397,31]
[322281978,1712932263000,-500.0,0.00047397,31]
[322281979,1712932263011,-500.0,0.00047397,31]
[322281980,1712932263021,-500.0,0.00047397,31]
[322281981,1712932263032,-500.0,0.00047397,31]
[322281982,1712932263043,-500.0,0.00047397,31]
[322281983,1712932263054,-500.0,0.00047397,31]
[322281984,1712932263064,-500.0,0.00047397,31]
[322281985,1712932263075,-500.0,0.00047397,31]
[322281986,1712932263085,-602.30625515,0.00047397,31]
[322281987,1712932263095,-500.0,0.00047397,31]
[322281988,1712932263104,-500.0,0.00047397,31]
[322281989,1712932263117,-500.0,0.00047397,30]
[322281990,1712932263127,-500.0,0.00047397,31]
[322281991,1712932263136,-500.0,0.00047397,31]
[322281992,1712932263145,-500.0,0.00047397,31]
[322281993,1712932263154,-500.0,0.00047397,31]
[322281994,1712932263163,-373.45600169,0.00047397,31]
[322281995,1712932263173,-500.0,0.00047397,31]
[322281996,1712932263182,-500.0,0.00047397,31]
[322281997,1712932263191,-500.0,0.00047397,31]
[322281998,1712932263200,-500.0,0.00047397,31]
[322281999,1712932263208,-612.26,0.00047397,31]
[322282000,1712932263218,-500.0,0.00047397,31]
[322282001,1712932263227,-500.0,0.00047397,31]
[322282002,1712932263236,-500.0,0.00047397,31]
[322282003,1712932263245,-621.43,0.00047397,2]
[322282004,1712932263254,-500.0,0.00047397,31]
[322282005,1712932263263,-500.0,0.00047397,31]
[322282006,1712932263272,-500.0,0.00047397,31]
[322282007,1712932263281,-500.0,0.00047397,31]
[322282008,1712932263290,-500.0,0.00047397,31]
[322282009,1712932263299,-150.0,0.00047397,31]
[322282010,1712932263309,-500.0,0.00047397,31]
[322282011,1712932263318,-500.0,0.00047397,31]
[322282012,1712932263327,-500.0,0.00047397,31]
[322282013,1712932263336,-500.0,0.00047397,31]
[322282014,1712932263346,-691.34,0.00047397,31]
[322282015,1712932263355,-500.0,0.00047397,31]
[322282016,1712932263367,-500.0,0.00047397,31]
[322282017,1712932263377,-500.0,0.00047397,31]
[322282018,1712932263392,-538.28,0.00047397,31]
[322282019,1712932263402,-500.0,0.00047397,31]
[322282020,1712932263411,-500.0,0.00047397,31]
[322282021,1712932263421,-500.0,0.00047397,31]
[322282022,1712932263434,-500.0,0.00047397,31]
[322282023,1712932263443,-500.0,0.00047397,31]
[322282024,1712932263454,-500.0,0.00047397,31]
[322282025,1712932263464,-702.45,0.00047397,31]
[322282026,1712932263475,-500.0,0.00047397,31]
[322282027,1712932263486,-500.0,0.00047397,31]
[322282028,1712932263496,-500.0,0.00047397,31]
[322282029,1712932263505,-505.82,0.00047397,31]
[322282030,1712932263516,-576.15877,0.00047397,31]
[322282031,1712932263526,-500.0,0.00047397,31]
[322282032,1712932263536,-500.0,0.00047397,31]
[322282033,1712932263545,-500.0,0.00047397,31]
[322282034,1712932263555,-500.0,0.00047397,31]
[322282035,1712932263564,-747.37,0.00047397,31]
[322282036,1712932263574,-662.01,0.00047397,31]
[322282037,1712932263583,-500.0,0.00047397,31]
[322282038,1712932263592,-500.0,0.00047397,31]
[322282039,1712932263602,-500.0,0.00047397,31]
[322282040,1712932263612,-500.0,0.00047397,31]
[322282041,1712932263622,-1486.72,0.00047397,31]
[322282042,1712932263631,-500.0,0.00047397,31]
[322282043,1712932263640,-5097.44,0.00047397,31]
[322282044,1712932263649,-666.65,0.00047397,31]
[322282045,1712932263659,-500.0,0.00047397,31]
[322282046,1712932263668,-1217.74,0.00047397,31]
[322282047,1712932263677,-500.0,0.00047397,31]
[322282048,1712932263687,-500.0,0.00047397,31]
[322282049,1712932263696,-500.0,0.00047397,31]
[322282050,1712932263706,-500.0,0.00047397,31]
[322282051,1712932263715,-500.0,0.00047397,31]
[322282052,1712932263725,-500.0,0.00047397,31]
[322282053,1712932263734,-500.0,0.00047397,31]
[322282054,1712932263744,-500.0,0.00047397,31]
[322282055,1712932263753,-500.0,0.00047397,31]
[322282056,1712932263764,-500.0,0.00047397,31]
[322282057,1712932263774,-500.0,0.00047397,31]
[322282058,1712932263785,-500.0,0.00047397,31]
[322282059,1712932263795,-500.0,0.00047397,31]
[322282060,1712932263806,-604.82,0.00047397,31]
[322282061,1712932263816,-1074.08,0.00047397,31]
[322282062,1712932263826,-500.0,0.00047397,31]
[322282063,1712932263837,-500.0,0.00047397,31]
[322282064,1712932263847,-500.0,0.00047397,31]
[322282065,1712932263856,-500.0,0.00047397,31]
[322282066,1712932263868,-500.0,0.00047397,31]
[322282067,1712932263877,-500.0,0.00047397,31]
[322282068,1712932263886,-508.21,0.00047397,31]
[322282069,1712932263895,-3098.58,0.00047397,31]
[322282070,1712932263904,-5402.79,0.00047397,31]
[322282071,1712932263914,-500.0,0.00047397,31]
[322282072,1712932263924,-500.0,0.00047397,31]
[322282073,1712932263933,-500.0,0.00047397,31]
[322282074,1712932263942,-755.08,0.00047397,31]
[322282075,1712932263951,-521.78,0.00047397,31]
[322282076,1712932263961,-500.0,0.00047397,31]
[322282077,1712932263972,-500.0,0.00047397,31]
[322282078,1712932263982,-500.0,0.00047397,31]
[322282079,1712932263991,-1277.67,0.00047397,31]
[322282080,1712932264000,-500.0,0.00047397,31]
[322282081,1712932264010,-583.7,0.00047397,31]
[322282082,1712932264019,-500.0,0.00047397,31]
[322282083,1712932264029,-672.51,0.00047397,31]
[322282084,1712932264040,-897.14,0.00047397,31]
[322282085,1712932264049,-500.0,0.00047397,31]
[322282086,1712932264059,-500.0,0.00047397,31]
[322282087,1712932264070,-500.0,0.00047397,31]
[322282088,1712932264081,-419.74675316,0.00047397,31]
[322282089,1712932264090,-690.24,0.00047397,31]
[322282090,1712932264100,-500.0,0.00047397,21]
[322282091,1712932264109,-2797.23,0.00047397,31]
[322282092,1712932264120,-665.47,0.00047397,31]
[322282093,1712932264130,-500.0,0.00047397,31]
[322282094,1712932264139,-500.0,0.00047397,31]
[322282095,1712932264150,-500.0,0.00047397,31]
[322282096,1712932264160,-500.0,0.00047397,31]
[322282097,1712932264170,-500.0,0.00047397,31]
[322282098,1712932264181,-500.0,0.00047397,31]
[322282099,1712932264191,-1459.05,0.00047397,31]
[322282100,1712932264201,-500.0,0.00047397,31]
[322282101,1712932264210,-500.0,0.00047397,31]
[322282102,1712932264219,-1230.89,0.00047397,31]
[322282103,1712932264229,-500.0,0.00047397,31]
[322282104,1712932264239,-500.0,0.00047397,31]
[322282105,1712932264248,-2213.61,0.00047397,31]
[322282106,1712932264258,-500.0,0.00047397,31]
[322282107,1712932264267,-500.0,0.00047397,31]
[322282108,1712932264276,-612.92,0.00047397,31]
[322282109,1712932264286,-754.08,0.00047397,31]
[322282110,1712932264295,-1797.61,0.00047397,31]
[322282111,1712932264305,-500.0,0.00047397,31]
[322282112,1712932264314,-1032.73,0.00047397,31]
[322282113,1712932264323,-500.0,0.00047397,31]
[322282114,1712932264333,-500.0,0.00047397,31]
[322282115,1712932264343,-500.0,0.00047397,31]
[322282116,1712932264352,-500.0,0.00047397,31]
[322282117,1712932264362,-1825.35,0.00047397,31]
[322282118,1712932264372,-500.0,0.00047397,31]
[322282119,1712932264381,-1023.55,0.00047397,31]
[322282120,1712932264396,-500.0,0.00047397,31]
[322282121,1712932264406,-500.0,0.00047397,31]
[322282122,1712932264415,-1939.06,0.00047397,31]
[322282123,1712932264427,-1826.11,0.00047397,31]
[322282124,1712932264437,-1072.93,0.00047397,31]
[322282125,1712932264446,-638.32,0.00047397,31]
[322282126,1712932264455,-500.0,0.00047397,31]
[322282127,1712932264466,-500.0,0.00047397,31]
[322282128,1712932264475,-604.62,0.00047397,31]
[322282129,1712932264485,-6523.12,0.00047397,31]
[322282130,1712932264494,-578.92,0.00047397,31]
[322282131,1712932264504,-1044.53,0.00047397,31]
[322282132,1712932264514,-500.0,0.00047397,31]
[322282133,1712932264523,-500.0,0.00047397,31]
[322282134,1712932264533,-871.26,0.00047397,31]
[322282135,1712932264543,-500.0,0.00047397,31]
[322282136,1712932264553,-168.04,0.00047397,31]
[322282137,1712932264562,-500.0,0.00047397,31]
[322282138,1712932264573,-851.38,0.00047397,31]
[322282139,1712932264582,-500.0,0.00047397,31]
[322282140,1712932264592,-767.12,0.00047397,31]
[322282141,1712932264602,-992.77,0.00047397,31]
[322282142,1712932264613,-500.0,0.00047397,31]
[322282143,1712932264623,-500.0,0.00047397,31]
[322282144,1712932264633,-1944.43,0.00047397,31]
[322282145,1712932264644,-500.0,0.00047397,31]
[322282146,1712932264655,-808.31,0.00047397,31]
[322282147,1712932264665,-500.0,0.00047397,31]
[322282148,1712932264675,-500.0,0.00047397,31]
[322282149,1712932264684,-513.62,0.00047397,31]
[322282150,1712932264695,-500.0,0.00047397,31]
[322282151,1712932264705,-830.2,0.00047397,31]
[322282152,1712932264715,-500.0,0.00047397,31]
[322282153,1712932264725,-500.0,0.00047397,31]
[322282154,1712932264734,-609.6,0.00047397,31]
[322282155,1712932264744,-500.0,0.00047397,31]
[322282156,1712932264753,-500.0,0.00047397,31]
[322282157,1712932264762,-500.0,0.00047397,31]
[322282158,1712932264772,-1025.86,0.00047397,31]
[322282159,1712932264781,-500.0,0.00047397,31]
[322282160,1712932264790,-500.0,0.00047397,31]
[322282161,1712932264799,-1870.81,0.00047397,31]
[322282162,1712932264809,-655.87,0.00047397,31]
[322282163,1712932264818,-887.38,0.00047397,31]
[322282164,1712932264828,-500.0,0.00047397,31]
[322282165,1712932264837,-4707.9,0.00047397,31]
[322282166,1712932264848,-688.0,0.00047397,31]
[322282167,1712932264857,-620.49,0.00047397,31]
[322282168,1712932264869,-500.0,0.00047397,31]
[322282169,1712932264878,-516.07,0.0004741,30]
[322282170,1712932264888,-150.0,0.00047455,30]
[322282171,1712932264897,-745.08327103,0.000475,40]
[322282172,1712932264907,-2005.23438905,0.000475,5]
[322282173,1712932264917,-150.0,0.000475,9]
[322282174,1712932264926,-302.0,0.00047521,4]
[322282175,1712932264936,-150.0,0.00047585,2]
[322282176,1712932265093,-442.0,0.00047597,2]
[322282177,1712932265105,-5142.96440596,0.000476,2]
[322282178,1712932265116,-150.0,0.000476,115]
[322282179,1712932265126,-155.47,0.000476,5]
[322282180,1712932265136,-152.49,0.000476,5]
[322282181,1712932265147,-152.49,0.000476,5]
[322282182,1712932265157,-152.49,0.000476,5]
[322282183,1712932265166,-152.49,0.000476,5]
[322282184,1712932265176,-152.49,0.000476,5]
[322282185,1712932265187,-152.49,0.000476,5]
[322282186,1712932265197,-152.49,0.000476,5]
[322282187,1712932265207,-152.49,0.000476,5]
[322282188,1712932265217,-152.49,0.000476,5]
[322282189,1712932265227,-152.49,0.000476,5]
[322282190,1712932265237,-152.49,0.000476,5]
[322282191,1712932265248,-152.49,0.000476,5]
[322282192,1712932265258,-152.49,0.000476,5]
[322282193,1712932265269,-152.49,0.000476,5]
[322282194,1712932265280,-152.49,0.000476,5]
[322282195,1712932265290,-152.49,0.000476,5]
[322282196,1712932265300,-500.0,0.00047671,31]
[322282197,1712932265310,-425.97664466,0.00047671,31]
[322282198,1712932265321,-500.0,0.00047671,31]
[322282199,1712932265331,-500.0,0.00047671,31]
[322282200,1712932265341,-500.0,0.00047671,31]
[322282201,1712932265351,-500.0,0.00047671,31]
[322282202,1712932265362,-393.60491771,0.00047671,31]
[322282203,1712932265372,-500.0,0.00047671,31]
[322282204,1712932265382,-500.0,0.00047671,31]
[322282205,1712932265393,-500.0,0.00047671,31]
[322282206,1712932265403,-500.0,0.00047671,31]
[322282207,1712932265414,-500.0,0.00047671,31]
[322282208,1712932265424,-530.68,0.00047671,31]
[322282209,1712932265440,-690.46,0.00047671,2]
[322282210,1712932265451,-500.0,0.00047671,31]
[322282211,1712932265461,-586.07,0.00047671,31]
[322282212,1712932265472,-500.0,0.00047671,31]
[322282213,1712932265483,-548.32,0.00047671,31]
[322282214,1712932265494,-500.0,0.00047671,31]
[322282215,1712932265505,-500.0,0.00047671,31]
[322282216,1712932265515,-1000.0,0.00047671,120]
[322282217,1712932265525,-500.0,0.00047671,31]
[322282218,1712932265536,-500.0,0.00047671,31]
[322282219,1712932265546,-500.0,0.00047671,31]
[322282220,1712932265555,-500.0,0.00047671,31]
[322282221,1712932265565,-500.0,0.00047671,31]
[322282222,1712932265575,-500.0,0.00047671,31]
[322282223,1712932265584,-517.24,0.00047671,31]
[322282224,1712932265594,-500.0,0.00047671,31]
[322282225,1712932265604,-500.0,0.00047671,31]
[322282226,1712932265613,-500.0,0.00047671,31]
[322282227,1712932265622,-500.0,0.00047671,31]
[322282228,1712932265632,-500.0,0.00047671,31]
[322282229,1712932265642,-500.0,0.00047671,31]
[322282230,1712932265651,-500.0,0.00047671,31]
[322282231,1712932265661,-315.11666468,0.00047671,31]
[322282232,1712932265671,-500.0,0.00047671,31]
[322282233,1712932265680,-500.0,0.00047671,31]
[322282234,1712932265690,-500.0,0.00047671,31]
[322282235,1712932265699,-500.0,0.00047671,31]
[322282236,1712932265709,-500.0,0.00047671,31]
[322282237,1712932265719,-500.0,0.00047671,30]
[322282238,1712932265729,-500.0,0.00047671,31]
[322282239,1712932265738,-500.0,0.00047671,31]
[322282240,1712932265748,-500.0,0.00047671,31]
[322282241,1712932265757,-500.0,0.00047671,31]
[322282242,1712932265766,-500.0,0.00047671,31]
[322282243,1712932265775,-500.0,0.00047671,31]
[322282244,1712932265785,-500.0,0.00047671,31]
[322282245,1712932265794,-500.0,0.00047671,31]
[322282246,1712932265804,-612.26,0.00047671,31]
[322282247,1712932265813,-500.0,0.00047671,31]
[322282248,1712932265823,-500.0,0.00047671,31]
[322282249,1712932265833,-500.0,0.00047671,31]
[322282250,1712932265842,-621.43,0.00047671,2]
[322282251,1712932265853,-500.0,0.00047671,31]
[322282252,1712932265864,-500.0,0.00047671,31]
[322282253,1712932265874,-500.0,0.00047671,31]
[322282254,1712932265883,-500.0,0.00047671,31]
[322282255,1712932265893,-150.0,0.00047671,31]
[322282256,1712932265903,-500.0,0.00047671,31]
[322282257,1712932265914,-500.0,0.00047671,31]
[322282258,1712932265925,-500.0,0.00047671,31]
[322282259,1712932265937,-500.0,0.00047671,31]
[322282260,1712932265947,-691.34,0.00047671,31]
[322282261,1712932265958,-500.0,0.00047671,31]
[322282262,1712932265968,-181.11641661,0.00047671,31]
[322282263,1712932265979,-500.0,0.00047671,31]
[322282264,1712932265989,-538.28,0.00047671,31]
[322282265,1712932265998,-500.0,0.00047671,31]
[322282266,1712932266008,-500.0,0.00047671,31]
[322282267,1712932266017,-349.35,0.00047671,31]
[322282268,1712932266027,-500.0,0.00047671,31]
[322282269,1712932266037,-500.0,0.00047671,31]
[322282270,1712932266046,-500.0,0.00047671,31]
[322282271,1712932266056,-702.45,0.00047671,31]
[322282272,1712932266065,-212.85390467,0.00047671,31]
[322282273,1712932266075,-500.0,0.00047671,31]
[322282274,1712932266084,-500.0,0.00047671,31]
[322282275,1712932266093,-505.82,0.00047671,31]
[322282276,1712932266103,-500.0,0.00047671,31]
[322282277,1712932266116,-500.0,0.00047671,31]
[322282278,1712932266125,-446.80603334,0.00047671,31]
[322282279,1712932266135,-500.0,0.00047671,31]
[322282280,1712932266144,-747.37,0.00047671,31]
[322282281,1712932266154,-662.01,0.00047671,31]
[322282282,1712932266163,-500.0,0.00047671,31]
[322282283,1712932266173,-500.0,0.00047671,31]
[322282284,1712932266182,-500.0,0.00047671,31]
[322282285,1712932266193,-500.0,0.00047671,31]
[322282286,1712932266203,-1486.72,0.00047671,31]
[322282287,1712932266212,-500.0,0.00047671,31]
[322282288,1712932266222,-5097.44,0.00047671,31]
[322282289,1712932266232,-666.65,0.00047671,31]
[322282290,1712932266242,-500.0,0.00047671,31]
[322282291,1712932266252,-1217.74,0.00047671,31]
[322282292,1712932266262,-500.0,0.00047671,31]
[322282293,1712932266271,-500.0,0.00047671,31]
[322282294,1712932266281,-500.0,0.00047671,31]
[322282295,1712932266290,-500.0,0.00047671,31]
[322282296,1712932266300,-500.0,0.00047671,31]
[322282297,1712932266310,-500.0,0.00047671,31]
[322282298,1712932266319,-500.0,0.00047671,31]
[322282299,1712932266329,-352.1640926,0.00047671,31]
[322282300,1712932266338,-500.0,0.00047671,31]
[322282301,1712932266347,-500.0,0.00047671,31]
[322282302,1712932266357,-500.0,0.00047671,31]
[322282303,1712932266368,-500.0,0.00047671,31]
[322282304,1712932266377,-500.0,0.00047671,31]
[322282305,1712932266390,-604.82,0.00047671,31]
[322282306,1712932266400,-1074.08,0.00047671,31]
[322282307,1712932266409,-500.0,0.00047671,31]
[322282308,1712932266418,-500.0,0.00047671,31]
[322282309,1712932266430,-500.0,0.00047671,31]
[322282310,1712932266439,-500.0,0.00047671,31]
[322282311,1712932266449,-500.0,0.00047671,31]
[322282312,1712932266459,-500.0,0.00047671,31]
[322282313,1712932266468,-508.21,0.00047671,31]
[322282314,1712932266478,-3098.58,0.00047671,31]
[322282315,1712932266487,-5402.79,0.00047671,31]
[322282316,1712932266496,-500.0,0.00047671,31]
[322282317,1712932266506,-500.0,0.00047671,31]
[322282318,1712932266515,-500.0,0.00047671,31]
[322282319,1712932266525,-755.08,0.00047671,31]
[322282320,1712932266535,-521.78,0.00047671,31]
[322282321,1712932266544,-183.91628168,0.00047671,31]
[322282322,1712932266554,-500.0,0.00047671,31]
[322282323,1712932266564,-500.0,0.00047671,31]
[322282324,1712932266573,-1277.67,0.00047671,31]
[322282325,1712932266582,-500.0,0.00047671,31]
[322282326,1712932266592,-583.7,0.00047671,31]
[322282327,1712932266602,-500.0,0.00047671,31]
[322282328,1712932266613,-672.51,0.00047671,31]
[322282329,1712932266623,-897.14,0.00047671,31]
[322282330,1712932266632,-500.0,0.00047671,31]
[322282331,1712932266642,-500.0,0.00047671,31]
[322282332,1712932266651,-500.0,0.00047671,31]
[322282333,1712932266661,-690.24,0.00047671,31]
[322282334,1712932266671,-500.0,0.00047671,21]
[322282335,1712932266680,-2797.23,0.00047671,31]
[322282336,1712932266690,-665.47,0.00047671,31]
[322282337,1712932266700,-500.0,0.00047671,31]
[322282338,1712932266710,-500.0,0.00047671,31]
[322282339,1712932266719,-500.0,0.00047671,31]
[322282340,1712932266729,-500.0,0.00047671,31]
[322282341,1712932266739,-500.0,0.00047671,31]
[322282342,1712932266750,-500.0,0.00047671,31]
[322282343,1712932266760,-1459.05,0.00047671,31]
[322282344,1712932266770,-500.0,0.00047671,31]
[322282345,1712932266780,-500.0,0.00047671,31]
[322282346,1712932266790,-1230.89,0.00047671,31]
[322282347,1712932266800,-500.0,0.00047671,31]
[322282348,1712932266810,-500.0,0.00047671,31]
[322282349,1712932266820,-2213.61,0.00047671,31]
[322282350,1712932266829,-500.0,0.00047671,31]
[322282351,1712932266839,-500.0,0.00047671,31]
[322282352,1712932266848,-612.92,0.00047671,31]
[322282353,1712932266858,-754.08,0.00047671,31]
[322282354,1712932266867,-1797.61,0.00047671,31]
[322282355,1712932266877,-500.0,0.00047671,31]
[322282356,1712932266889,-1032.73,0.00047671,31]
[322282357,1712932266898,-500.0,0.00047671,31]
[322282358,1712932266908,-500.0,0.00047671,31]
[322282359,1712932266920,-500.0,0.00047671,31]